Cogmind - Beta 14 @@@ ROGUE MODE // 2024.09.12 @ 03:39:36 Player: J1ang-5h1 Result: Destroyed by YI-UF0 with YI-UF0's Doublenader Performance ------------- Evolutions (0) 0 Regions Visited (2) 400 Robots Destroyed (34) 170 Value Destroyed (542) 542 Prototype IDs (2) 40 Alien Tech Used (0) 0 Bonus (0) 0 TOTAL SCORE: 1152 Bonus ------- None Cogmind --------- Core Integrity 0/250 Matter 270/300 Energy 265/265 System Corruption 0% Temperature Cool (0) Movement Rolling (120) Ox2 Location -10/Mines Parts ------- > --- POWER (1) -------- Improved Ion Engine > --- PROPULSION (2) --- Armored Wheel Armored Wheel > --- UTILITY (2) ------ High-capacity Storage Unit Improved Terrain Scanner > --- WEAPON (2) ------- Mini Grenade Launcher Hammer > --- INVENTORY (20) --- Improved Ion Engine Improved Ion Engine Light Treads Light Treads Armored Wheel Cooling System High-capacity Matter Pod (200) Experimental Sensor Array Shield Generator Tractor Beam Grenade Launcher Grenade Launcher Mini Grenade Launcher Mini Grenade Launcher Mini Grenade Launcher Hammer Explosive Trap Explosive Trap Explosive Trap Peak State ------------ > --- POWER ------------ Improved Ion Engine > --- PROPULSION ------- Armored Wheel Armored Wheel > --- UTILITY ---------- High-capacity Storage Unit Improved Terrain Scanner > --- WEAPON ----------- Hammer Hammer > --- INVENTORY -------- Improved Ion Engine Improved Ion Engine Light Treads Light Treads Armored Wheel Cooling System Cooling System Cooling System High-capacity Matter Pod Weight Redist. System Experimental Sensor Array Signal Interpreter Shield Generator Tractor Beam Grenade Launcher Grenade Launcher Mini Grenade Launcher Mini Grenade Launcher Mini Grenade Launcher Mini Grenade Launcher [Rating: 16] Favorites ----------- Power Ion Engine Engine Ion Engine Propulsion Aluminum Leg Treads Light Treads Leg Aluminum Leg Wheel Armored Wheel Utility High-capacity Storage Unit Device Seismic Detector Storage High-capacity Storage Unit Weapon Assault Rifle Energy Gun Medium Laser Ballistic Gun Assault Rifle Launcher Mini Grenade Launcher Special Weapon Mining Laser Impact Weapon Hammer Build | -11 -10 -10 ------- Run | Yrd Mat Min Slots Evolved . | . . . Power . | . . . Propulsion . | . . . Utility . | . . . Weapon . | . . . Parts Attached 43 | 1 38 4 Power 5 | . 5 . Engine 5 | . 5 . Core . | . . . Reactor . | . . . Propulsion 16 | . 16 . Treads 2 | . 2 . Leg 7 | . 7 . Wheel 7 | . 7 . Hover . | . . . Flight . | . . . Utility 6 | 1 2 3 Device 5 | 1 1 3 Storage 1 | . 1 . Processor . | . . . Hackware . | . . . Protection . | . . . Artifact . | . . . Weapon 16 | . 15 1 Energy Gun . | . . . Energy Cannon . | . . . Ballistic Gun 9 | . 9 . Ballistic Cannon . | . . . Launcher 3 | . 2 1 Special Weapon 1 | . 1 . Impact Weapon 3 | . 3 . Slashing Weapon . | . . . Piercing Weapon . | . . . Special Melee Weapon . | . . . Unidentified Prototypes . | . . . Parts Lost 4 | . 4 . Power 1 | . 1 . Propulsion . | . . . Utility 1 | . 1 . Weapon 2 | . 2 . Highest Loss Streak 4 | . 4 . To Critical Strikes . | . . . Average Slot Usage (%) 98 | . 98 100 Engine 13 | . 13 14 Treads 2 | . 2 . Leg 14 | . 18 . Wheel 11 | . 6 28 Device 13 | . 13 14 Storage 14 | . 14 14 Ballistic Gun 13 | . 18 . Launcher 2 | . . 8 Impact Weapon 9 | . 5 20 Peak Build Rating 16 | 8 14 16 Average Rating 10 | 6 9 15 On Entrance 9 | 6 8 14 Naked Turns . | . . . Heaviest Build 53 | 15 53 53 Greatest Support 40 | 20 40 24 Greatest Overweight (x) 3 | . 3 2 Average Overweight (x) 1 | . . 2 Largest Inventory Capacity 20 | 8 20 20 Average Capacity 15 | 8 14 20 Most Carried 20 | 8 20 20 Average Carried 14 | 6 12 19 Final Capacity 20 | 8 20 20 Final Carried 20 | 8 20 19 Class Distribution -------------------- 100% | Mutant Dominant Class ---------------- Mutant | -10/Materials Mutant | -10/Mines Resources | -11 -10 -10 ----------- Run | Yrd Mat Min Matter Collected 1319 | 246 889 184 Remotely . | . . . Salvage Created 1103 | 151 897 55 Parts 61 | 9 52 . Haulers Intercepted 1 | . 1 . Recyclers Shooed 2 | . 2 . Parts Field Recycled . | . . . Retrieved Matter . | . . . Parts Self-Destructed . | . . . Prevented . | . . . Kills | -11 -10 -10 ------- Run | Yrd Mat Min Combat Hostiles Destroyed 28 | . 19 9 Melee 2 | . 2 . Guns 12 | . 12 . AOE 11 | . 3 8 Classes Destroyed 8 | 2 5 1 Worker 4 | . 4 . Tunneler 3 | 3 . . Hauler 1 | . 1 . Recycler 4 | 1 3 . Watcher 3 | . 3 . Swarmer 9 | . 9 . Grunt 10 | . 10 . Assembled 9 | . . 9 Best Kill Streak 8 | 2 5 8 Combat Bots Only 8 | . 3 8 Max Kills in Single Turn 5 | 1 4 5 Gunslinging . | . . . Exploded 5 | . 3 5 Melee 1 | . 1 . Uniques/NPCs Destroyed . | . . . Combat | -11 -10 -10 -------- Run | Yrd Mat Min Hostile Shots Fired 119 | . 97 22 Missed 31 | . 24 7 Damage Taken 1006 | . 764 242 Core 252 | . 181 71 Absorbed by Shields 24 | . 9 15 Core Remaining (%) 100 | 100 . . Volleys Fired 88 | 13 63 12 Largest 2 | 2 2 1 Hottest 120 | 70 120 30 Shots Fired 161 | 25 124 12 Gun 146 | 25 121 . Cannon . | . . . Launcher 14 | . 2 12 Special 1 | . 1 . Kinetic 133 | 13 120 . Thermal 14 | 12 2 . Explosive 14 | . 2 12 Electromagnetic . | . . . Robot Hit Streak 7 | 5 7 1 Robot Miss Streak 6 | 3 6 3 Penetration Max . | . . . Secondary Targets 2 | . 2 . Max Gunslinging Chain 1 | . 1 . Shots Hit Robots 102 | 14 83 5 Core Hits 50 | 5 32 13 Critical Kills 1 | . 1 . Critical Parts Destroyed 2 | . 2 . Critical Strikes 4 | 1 3 . Burn 1 | 1 . . Destroy 1 | . 1 . Smash 2 | . 2 . Melee Attacks 38 | . 29 9 Impact 38 | . 29 9 Slashing . | . . . Piercing . | . . . Sneak Attacks 6 | . 5 1 Combat Hostiles . | . . . Follow-up Attacks . | . . . Damage Inflicted 2400 | 197 1652 551 Guns 1039 | 197 842 . Cannons . | . . . Explosions 594 | . 147 447 Melee 767 | . 663 104 Ramming . | . . . Kinetic 966 | 124 842 . Thermal 73 | 73 . . Explosive 594 | . 147 447 Electromagnetic . | . . . Impact 767 | . 663 104 Slashing . | . . . Piercing . | . . . Highest Corruption . | . . . Average Corruption . | . . . Corruption Purged . | . . . Corruption Blocked . | . . . Overload Shots . | . . . Overflow Damage 145 | . 139 6 Projectiles . | . . . Explosions . | . . . Melee 145 | . 139 6 Knockbacks 4 | . 3 1 Impact 4 | . 3 1 Kinetic . | . . . Secondary . | . . . Self-Inflicted Damage 19 | . . 19 Shots 2 | . . 2 Rammed . | . . . Targets Rammed . | . . . Kicked . | . . . Crushed . | . . . Highest Temperature 27 | 27 20 6 Average Temperature 10 | 13 6 3 Received Heat Transfer 406 | . 306 100 Siege Activations . | . . . Robots Corrupted 5 | . 4 1 Combat Hostiles 3 | . 2 1 Parts Fried 5 | . 5 . Impact Corruptions 9 | . 8 1 Robots Melted . | . . . Combat Hostiles . | . . . Parts Melted . | . . . Heat Transferred 296 | 296 . . Parts Sabotaged . | . . . Parts Stolen . | . . . Parts Stripped . | . . . Power Chain Reactions . | . . . Alert | -11 -10 -10 ------- Run | Yrd Mat Min Peak Influence 406 | 20 406 177 Initial 126 | . 13 126 Average 204 | 9 252 82 Maximum Alert Level 2 | . 2 . Low Security (%) 51 | 100 33 100 Level 1 48 | . 66 . Level 2 . | . . . Level 3 . | . . . Level 4 . | . . . Level 5 . | . . . High Security . | . . . Max Security . | . . . Squads Dispatched 4 | . 4 . Investigation 2 | . 2 . Extermination . | . . . Reinforcement 2 | . 2 . Assault . | . . . Garrison . | . . . Intercept . | . . . Searches Triggered . | . . . Construction Impeded . | . . . Haulers Reinforced . | . . . Active Scanning Responses . | . . . Cargo Convoy Interrupts . | . . . Stealth | -11 -10 -10 --------- Run | Yrd Mat Min Distress Signals 2 | . 2 . Communications Jammed . | . . . Distress Signals . | . . . Times Spotted 41 | . 28 13 Peak Tracking Total 6 | . 3 6 Tactical Retreats 8 | . 7 1 Traps | -11 -10 -10 ------- Run | Yrd Mat Min Traps Triggered 3 | . 3 . Indirectly . | . . . Trap Hack Attempts . | . . . Triggered . | . . . Disarmed . | . . . Reprogrammed . | . . . Reused . | . . . Traps Extracted . | . . . Installed . | . . . Triggered . | . . . Most Traps Carried 2 | . . 2 Machines | -11 -10 -10 ---------- Run | Yrd Mat Min Machines Disabled . | . . . Max in Single Turn . | . . . Machines Repaired . | . . . Machines Dismantled . | . . . Machines Sabotaged . | . . . Overloaded Fab Kills . | . . . Hacking | -11 -10 -10 --------- Run | Yrd Mat Min Machines Accessed 9 | . 9 . Terminals 6 | . 6 . Fabricators . | . . . Repair Stations 1 | . 1 . Recycling Units 2 | . 2 . Scanalyzers . | . . . Garrison Access . | . . . Total Hacks 32 | . 32 . Successful 16 | . 16 . Failed 15 | . 15 . Catastrophic 1 | . 1 . Database Lockouts 1 | . 1 . Manual 19 | . 19 . Terminals 25 | . 25 . Fabricators . | . . . Repair Stations 2 | . 2 . Recycling Units 5 | . 5 . Scanalyzers . | . . . Garrison Access . | . . . Terminal Hacks 6 | . 6 . Robot Analysis 3 | . 3 . Prototype ID Bank 1 | . 1 . Alert Level 1 | . 1 . Hauler Manifests 1 | . 1 . Fabricator Hacks . | . . . Repair Station Hacks . | . . . Recycling Unit Hacks 1 | . 1 . Report Inventory 1 | . 1 . Scanalyzer . | . . . Garrison Access Hacks . | . . . Unauthorized Hacks 9 | . 9 . Terminals 7 | . 7 . Botnet 2 | . 2 . Skim 5 | . 5 . Fabricators . | . . . Repair Stations . | . . . Recycling Units 2 | . 2 . Tunnel 2 | . 2 . Scanalyzers . | . . . Garrison Access . | . . . Data Cores Recovered . | . . . Used . | . . . Hacking Detections 9 | . 9 . Full Trace Events . | . . . Feedback Events . | . . . Feedback Blocked . | . . . Robot Schematics Acquired . | . . . Robots Built . | . . . Authchips . | . . . Time . | . . . Total Robot Build Rating . | . . . Part Schematics Acquired . | . . . Parts Built . | . . . Authchips . | . . . Time . | . . . Total Part Build Rating . | . . . Parts Repaired . | . . . Time . | . . . Parts Recycled . | . . . Recycled Matter . | . . . Retrieved Matter . | . . . Retrieved Components . | . . . Parts Scanalyzed . | . . . Part Schematics Acquired . | . . . Parts Damaged . | . . . Bothacking | -11 -10 -10 ------------ Run | Yrd Mat Min Used RIF Installer . | . . . Robots Hacked . | . . . Non-combat . | . . . Combat . | . . . Robot Hacks Applied . | . . . Relay Couplers Released . | . . . Fabnet Peak Effective % . | . . . Robots Rewired . | . . . Allies Hacked . | . . . Hacks Repelled . | . . . Allies | -11 -10 -10 -------- Run | Yrd Mat Min Total Allies . | . . . Largest Group . | . . . Highest-Rated Group . | . . . Highest-Rated Ally . | . . . Total Orders . | . . . Ally Attacks . | . . . Total Damage . | . . . Kills . | . . . Allies Corrupted . | . . . Allies Melted . | . . . Intel | -11 -10 -10 ------- Run | Yrd Mat Min Robot Analysis Total 3 | . 3 . Derelict Logs Recovered 1 | . . 1 Drone Launches . | . . . Drone Recoveries . | . . . Exploration | -11 -10 -10 ------------- Run | Yrd Mat Min Turns Passed 2986 | 109 2178 699 Spaces Moved 1614 | 55 1045 514 Core . | . . . Treads 81 | . 81 . Legs 647 | 55 592 . Wheels 886 | . 372 514 Hover . | . . . Flight . | . . . Fastest Speed 105 | 120 105 120 Average Speed 138 | 120 147 120 Slowest Speed 260 | 120 260 120 Overloaded Moves . | . . . Propulsion Burnouts . | . . . Robots Hopped . | . . . Cave-ins Triggered . | . . . Exploration Rate (%) 53 | 6 93 61 Regions Visited 2 Branch Regions 1 Pre-discovered Areas 4 | . 3 1 Known Exits Taken 1 | . 1 . Unknown Exits Taken 1 | 1 . . Scrap Searched 1 | . . 1 Spaces Dug 29 | . 5 24 Terrain Destroyed 97 | . 15 82 Melee 6 | . 4 2 Projectile 1 | . 1 . AOE 90 | . 10 80 Terrain Rammed . | . . . Walls Destroyed . | . . . Machines Disabled . | . . . Actions | -11 -10 -10 --------- Run | Yrd Mat Min Total 2143 | 73 1499 571 Wait 294 | . 270 24 Move 1612 | 54 1044 514 Hop . | . . . Pick Up 42 | 4 34 4 Fast Attach 6 | . 6 . Attach 7 | 1 6 . Detach . | . . . Swap 30 | . 26 4 Drop 28 | 1 22 5 Fire 88 | 13 63 12 Melee 36 | . 28 8 Ram . | . . . Kick . | . . . Crush . | . . . Escape Stasis . | . . . Rewire . | . . . Trap . | . . . Miscellaneous . | . . . Route ------- -11/Scrapyard -10/Materials (discovered 6 exits: *Mat x3 / *Min x2 / Sub) -10/Mines History --------- Turn | Location | Event 12 | -11/Scrapyard | Discovered new exit (range 3) 110 | -11/Scrapyard | Entered Materials 304 | -10/Materials | Build established: Mutant 616 | -10/Materials | Central database locked down 782 | -10/Materials | Discovered new exit (range 16) 1156 | -10/Materials | Discovered new exit (range 5) 1601 | -10/Materials | Discovered new exit (range 7) 1737 | -10/Materials | Learned location of Mines (-9) 1757 | -10/Materials | Core integrity fell below 50% 1767 | -10/Materials | Learned Recycling recycling unit intel 1787 | -10/Materials | Learned location of 1 exit from Recycling 1795 | -10/Materials | Identified exit to Mines 1796 | -10/Materials | Learned Storage trap positions 1797 | -10/Materials | Identified exit to Subcaves 1797 | -10/Materials | Identified exit to Materials 1798 | -10/Materials | Learned 4 Recycling zone layouts 1804 | -10/Materials | Loaded intel: 20 trap records 1818 | -10/Materials | Learned Materials emergency access door positions 1825 | -10/Materials | Lost 4 parts (1p1u2w) 1841 | -10/Materials | Learned 2 Storage zone layouts 2288 | -10/Materials | Entered Mines 2289 | -10/Mines | YI-UF0 nonchalantly dropped a Grenade Launcher on the ground 2348 | -10/Mines | Found a damaged Exp. Sensor Array with a note attached 2351 | -10/Mines | Found Prototype Device 2533 | -10/Mines | Assembled infested the area 2591 | -10/Mines | Core integrity fell below 20% 2646 | -10/Mines | Destroyed 8 combat bots 2910 | -10/Mines | Learned location of Storage (-9) 2972 | -10/Mines | Found a hidden stash of uninstalled traps 2987 | -10/Mines | Destroyed by YI-UF0 with YI-UF0's Doublenader Last Messages --------------- 02889_ K-01 Serf collects debris. 02910_ Acquired derelict log, extracted data. World map updated: -9/Storage. 02913_ T-07 Excavator is excavating. 02929_ Extracted 172 matter. 02930_ Searching scrap... 02930_ Found Assault Rifle. 02930_ Found EM Pulse Gun. 02930_ Found 39 Matter. 02935_ as-84181 destroyed. 02942_ R-06 Scavenger destroyed. 02962_ T-07 Excavator is excavating. 02972_ A stash of uninstalled traps is collected here! 02973_ Dropped Signal Interpreter. 02974_ Dropped Weight Redist. System. 02974_ Dropped Cooling System. 02976_ Acquired Explosive Trap. 02981_ YI-UF0: "BWOOM!" 02982_ Acquired Explosive Trap. Map ----- +----------------------------------------------------+ | ?????????????????????????????????????????????? | | ?????????????????????????????????????????????? | | ?????????????????????????????????????????????? | | ?????????????????????????????????????????????? | | ?????????????????????????????????????????????? | | ?????????????????????????????????????????????? | | ?????????????????????????????????????????????? | | ?????????????????????????????????????????????? | | ?????????????????????????????????????????????? | | ?????????????????????????????????????????????? | | ?????????????????????????????????????????????? | | ?????????????????#???????????????????????????? | | ?????????????????# ??#????????????????######## | | ?????????????##### ?????????????????? | | ??????????????# # ??? ?????????????? | | ?????????????? ????????????????????# | | ??????????????? #??#????????????????# | | ???????????#???# ##?????????? ??????# | | ???????#???????# ##????????????????# # | | ???????????#??## ??#??????????????? ???? | | ??????????????? #? #??????? ??????????? | | ???????????? ??? ## ##??? % ?????????? | | ?????????????? ?? ## ?????????? | | ??????#???????????# ????????? | | ????????? ???????## ????????? | | ?#???#????????#?### !@!! % g < ? ??????? | | ???????????????## ?????#? | | ??#????????????# # ! ??? ?? | | ???????????????# ###???? ?? ? | | ????????######### ###?????????!? #??## | | ???????## [% ###???#???????# # ###? | | ???????# [!!! #?#####???????? #=% ## | | ??#????## ! ! # ##?# #??????#?? !# # | | ????????### ! ####??# #????????# | | ??????????# ! #?????# ##????#?# ### | | ???????#??# ######? ####???# # * | | ???????##### #?? ##?## !%= | | ???????# #???# ### # | | ???????## #### #???## # | | ????????## ######## #????# # # " | | ????#????###?????#?# ###### # | | ?????????????????### #### | | ???#???????#?#?????# # #??# | | ?????????????????#?########### #??# | | ???#?????????????????????????## # #####? | | ??????????????#???????????????### #### #?## # | | ????#???????????????????????????####??###?# | | ???????????????????????????????????????????# | | #????????##???#????????????#????????##?#???## | | ????##### #?#??#????#??????????????########## | +----------------------------------------------------+ Best States ------------- Heat Dissipation 25 Energy Generation 12 Energy Capacity 265 Matter Stores 300 Matter Capacity 300 Sight Range 16 Terrain Scan Range 16 Terrain Scan Density 10 Evasion (%) 55 Recoil Reduction 2 Item Schematics ----------------- None Robot Schematics ------------------ None Fabricated ------------ Nothing Alien Tech Used ----------------- None Achievements -------------- None Challenges ------------ None Game ------ Seed FissionSurgeThrower Manual? 0 Play Time 00:30:47 Cumulative 270.4 hours Start 2024.09.12 @ 03:11:53 End 2024.09.12 @ 03:39:36 Sessions 1 Manual Loads 0 Difficulty Rogue Special Mode None Game No. 202 Rogue 192 Adventurer 0 Explorer 10 Win Type - Total 3 Types 3/0/0/0/0/0/0/0/0 Lore% 67 Gallery% 70 Achievement% 53 Wizard Run 0 Options --------- Layout 2 ASCII 0 Keyboard 0 Movement Arrows Keybinds 1 Fullscreen 1 Font 24/Smallcaps Map View 50x44 Zoom Use 0% Tactical HUD 1 Map Filters NONE Filters NONE Steam 1 RUN: 77083138-c1e2-443a-9f1d-cf9b008942f5